fUSD/lending_fUSD_20240822
["ID","MTS","AMOUNT","RATE_DAILY","PERIOD"]
[335515006,1724296262514,-242.628415,0.00010958,2]
[335515007,1724296262524,-8433.09,0.00010958,2]
[335515008,1724296262533,-7124.05006425,0.00010958,2]
[335515009,1724296262544,-862.96,0.00010958,2]
[335515010,1724296262553,-8433.09,0.00010958,2]
[335515011,1724296262563,-862.96,0.00010958,2]
[335515012,1724296262574,-8433.09,0.00010958,2]
[335515013,1724296262584,-862.96,0.00010958,2]
[335515014,1724296262594,-8433.09,0.00010958,2]
[335515015,1724296262604,-500.0,0.00010958,2]
[335515016,1724296262613,-862.96,0.00010958,2]
[335515017,1724296262623,-2269.42,0.00010958,2]
[335515018,1724296262632,-8433.09,0.00010958,2]
[335515019,1724296262641,-500.0,0.00010958,2]
[335515020,1724296262650,-862.96,0.00010958,2]
[335515021,1724296262661,-2269.42,0.00010958,2]
[335515022,1724296262670,-8433.09,0.00010958,2]
[335515023,1724296262679,-862.96,0.00010958,2]
[335515024,1724296262688,-385.99613982,0.00010958,2]
[335515025,1724296262698,-862.96,0.00010958,2]
[335515026,1724296262707,-8433.09,0.00010958,2]
[335515027,1724296262716,-862.96,0.00010958,2]
[335515028,1724296262727,-8433.09,0.00010958,2]
[335515029,1724296262738,-863.02519125,0.00010958,2]
[335515030,1724296262748,-2269.42,0.00010958,2]
[335515031,1724296262758,-8433.09,0.00010958,2]
[335515032,1724296262767,-2269.42,0.00010958,2]
[335515033,1724296262776,-8433.09,0.00010958,2]
[335515034,1724296262786,-2269.42,0.00010958,2]
[335515035,1724296262796,-8433.09,0.00010958,2]
[335515036,1724296262805,-2269.42,0.00010958,2]
[335515037,1724296262816,-500.0,0.00010958,2]
[335515038,1724296262829,-8433.09,0.00010958,2]
[335515039,1724296262839,-500.0,0.00010958,2]
[335515040,1724296262849,-2269.42,0.00010958,2]
[335515041,1724296262859,-8433.09,0.00010958,2]
[335515042,1724296262872,-559.23804116,0.00010958,2]
[335515043,1724296262882,-500.0,0.00010958,2]
[335515044,1724296262892,-500.0,0.00010958,2]
[335515045,1724296262902,-2269.42,0.00010958,2]
[335515046,1724296262912,-8433.09,0.00010958,2]
[335515047,1724296262924,-506.70061032,0.00010958,2]
[335515048,1724296262935,-500.0,0.00010958,2]
[335515049,1724296262945,-8433.09,0.00010958,2]
[335515050,1724296263035,-2269.42,0.00010958,2]
[335515051,1724296263046,-500.0,0.00010958,2]
[335515052,1724296263057,-8433.09,0.00010958,2]
[335515053,1724296263068,-2269.42,0.00010958,2]
[335515054,1724296263082,-500.0,0.00010958,2]
[335515055,1724296263092,-500.0,0.00010958,2]
[335515056,1724296263101,-8433.09,0.00010958,2]
[335515057,1724296263111,-2269.42,0.00010958,2]
[335515058,1724296263123,-500.0,0.00010958,2]
[335515059,1724296263133,-500.0,0.00010958,2]
[335515060,1724296263143,-8433.09,0.00010958,2]
[335515061,1724296263155,-2269.42,0.00010958,2]
[335515062,1724296263166,-500.0,0.00010958,2]
[335515063,1724296263176,-500.0,0.00010958,2]
[335515064,1724296263185,-2269.42,0.00010958,2]
[335515065,1724296263195,-500.0,0.00010958,2]
[335515066,1724296263203,-8433.22737915,0.00010958,2]
[335515067,1724296263211,-500.0,0.00010958,2]
[335515068,1724296263220,-2269.42,0.00010958,2]
[335515069,1724296263230,-500.0,0.00010958,2]
[335515070,1724296263240,-620.68031775,0.00010958,2]
[335515071,1724296263249,-2269.42,0.00010958,2]
[335515072,1724296263259,-500.0,0.00010958,2]
[335515073,1724296263268,-2269.42,0.00010958,2]
[335515074,1724296263277,-500.0,0.00010958,2]
[335515075,1724296263287,-2269.42,0.00010958,2]
[335515076,1724296263296,-500.0,0.00010958,2]
[335515077,1724296263305,-2269.42,0.00010958,2]
[335515078,1724296263315,-500.0,0.00010958,2]
[335515079,1724296263324,-2269.42,0.00010958,2]
[335515080,1724296263334,-500.0,0.00010958,2]
[335515081,1724296263343,-500.0,0.00010958,2]
[335515082,1724296263352,-2269.42,0.00010958,2]
[335515083,1724296263362,-500.0,0.00010958,2]
[335515084,1724296263373,-2860.72,0.00010958,2]
[335515085,1724296263382,-2269.42,0.00010958,2]
[335515086,1724296263392,-500.0,0.00010958,2]
[335515087,1724296263401,-500.0,0.00010958,2]
[335515088,1724296263411,-2860.72,0.00010958,2]
[335515089,1724296263420,-2269.55089169,0.00010958,2]
[335515090,1724296263431,-4691.16,0.00010958,2]
[335515091,1724296263440,-500.0,0.00010958,2]
[335515092,1724296263449,-500.0,0.00010958,2]
[335515093,1724296263459,-573.30351983,0.00010958,2]
[335515094,1724296263468,-2860.72,0.00010958,2]
[335515095,1724296263477,-4691.16,0.00010958,2]
[335515096,1724296263487,-500.0,0.00010958,2]
[335515097,1724296263496,-500.0,0.00010958,2]
[335515098,1724296263505,-2860.72,0.00010958,2]
[335515099,1724296263515,-4691.16,0.00010958,2]
[335515100,1724296263525,-500.0,0.00010958,2]
[335515101,1724296263535,-500.0,0.00010958,2]
[335515102,1724296263544,-2860.72,0.00010958,2]
[335515103,1724296263554,-4691.16,0.00010958,2]
[335515104,1724296263564,-500.0,0.00010958,2]
[335515105,1724296263574,-2860.72,0.00010958,2]
[335515106,1724296263583,-500.0,0.00010958,2]
[335515107,1724296263593,-616.85,0.00010958,2]
[335515108,1724296263603,-4691.16,0.00010958,2]
[335515109,1724296263613,-500.0,0.00010958,2]
[335515110,1724296263623,-616.85,0.00010958,2]
[335515111,1724296263633,-4691.16,0.00010958,2]
[335515112,1724296263642,-172.96134635,0.00010958,2]
[335515113,1724296263652,-2860.72,0.00010958,2]
[335515114,1724296263661,-500.0,0.00010958,2]
[335515115,1724296263671,-616.85,0.00010958,2]
[335515116,1724296263681,-4691.16,0.00010958,2]
[335515118,1724296263690,-2860.72,0.00010958,2]
[335515119,1724296263699,-500.0,0.00010958,2]
[335515120,1724296263709,-616.85,0.00010958,2]
[335515121,1724296263719,-4691.16,0.00010958,2]
[335515122,1724296263728,-2860.72,0.00010958,2]
[335515123,1724296263737,-500.0,0.00010958,2]
[335515124,1724296263747,-616.85,0.00010958,2]
[335515125,1724296263756,-4691.16,0.00010958,2]
[335515126,1724296263766,-500.0,0.00010958,2]
[335515127,1724296263776,-2860.72,0.00010958,2]
[335515128,1724296263785,-616.85,0.00010958,2]
[335515129,1724296263795,-4691.16,0.00010958,2]
[335515130,1724296263804,-2860.72,0.00010958,2]
[335515131,1724296263815,-500.0,0.00010958,2]
[335515132,1724296263825,-500.0,0.00010958,2]
[335515133,1724296263835,-616.85,0.00010958,2]
[335515134,1724296263844,-576.7222541,0.00010958,2]
[335515135,1724296263854,-4691.16,0.00010958,2]
[335515136,1724296263864,-500.0,0.00010958,2]
[335515137,1724296263874,-2860.72,0.00010958,2]
[335515138,1724296263884,-616.85,0.00010958,2]
[335515139,1724296263894,-4691.16,0.00010958,2]
[335515140,1724296263914,-500.0,0.00010958,2]
[335515141,1724296263924,-2860.72,0.00010958,2]
[335515142,1724296263933,-616.85,0.00010958,2]
[335515143,1724296263943,-4691.16,0.00010958,2]
[335515144,1724296263952,-263.07450382,0.00010958,2]
[335515145,1724296263962,-2860.72,0.00010958,2]
[335515146,1724296263971,-616.85,0.00010958,2]
[335515147,1724296263981,-4691.16,0.00010958,2]
[335515148,1724296263990,-2860.72,0.00010958,2]
[335515149,1724296264000,-616.85,0.00010958,2]
[335515150,1724296264009,-4691.16,0.00010958,2]
[335515151,1724296264019,-616.85,0.00010958,2]
[335515152,1724296264028,-4691.16,0.00010958,2]
[335515153,1724296264038,-2860.72,0.00010958,2]
[335515154,1724296264048,-616.85,0.00010958,2]
[335515155,1724296264057,-4691.16,0.00010958,2]
[335515156,1724296264067,-2860.72,0.00010958,2]
[335515157,1724296264082,-616.85,0.00010958,2]
[335515158,1724296264092,-4691.16,0.00010958,2]
[335515159,1724296264102,-500.0,0.00010958,2]
[335515160,1724296264111,-2860.72,0.00010958,2]
[335515161,1724296264121,-616.85,0.00010958,2]
[335515162,1724296264131,-4691.16,0.00010958,2]
[335515163,1724296264144,-154.29554362,0.00010958,2]
[335515164,1724296264159,-2860.72,0.00010958,2]
[335515165,1724296264169,-616.85,0.00010958,2]
[335515166,1724296264180,-4691.16,0.00010958,2]
[335515167,1724296264189,-2860.72,0.00010958,2]
[335515168,1724296264199,-616.85,0.00010958,2]
[335515169,1724296264209,-4691.16,0.00010958,2]
[335515170,1724296264218,-616.85,0.00010958,2]
[335515171,1724296264227,-2860.72,0.00010958,2]
[335515172,1724296264237,-8111.41,0.00010958,2]
[335515173,1724296264246,-4691.16,0.00010958,2]
[335515174,1724296264254,-616.85,0.00010958,2]
[335515175,1724296264263,-2860.72,0.00010958,2]
[335515176,1724296264272,-8111.41,0.00010958,2]
[335515177,1724296264281,-4691.16,0.00010958,2]
[335515178,1724296264291,-616.85,0.00010958,2]
[335515179,1724296264300,-2860.72,0.00010958,2]
[335515180,1724296264309,-8111.41,0.00010958,2]
[335515181,1724296264318,-4691.35163959,0.00010958,2]
[335515182,1724296264327,-616.85,0.00010958,2]
[335515183,1724296264336,-500.0,0.00010958,2]
[335515184,1724296264347,-2860.87710866,0.00010958,2]
[335515185,1724296264356,-8111.41,0.00010958,2]
[335515186,1724296264366,-616.85,0.00010958,2]
[335515187,1724296264375,-500.0,0.00010958,2]
[335515188,1724296264384,-8111.41,0.00010958,2]
[335515189,1724296264394,-616.85,0.00010958,2]
[335515190,1724296264403,-500.0,0.00010958,2]
[335515191,1724296264413,-8111.41,0.00010958,2]
[335515192,1724296264422,-617.08704567,0.00010958,2]
[335515193,1724296264432,-500.0,0.00010958,2]
[335515194,1724296264441,-8111.41,0.00010958,2]
[335515195,1724296264451,-529.27392915,0.00010958,2]
[335515196,1724296264461,-8111.41,0.00010958,2]
[335515197,1724296264583,-8111.41,0.00010958,2]
[335515198,1724296264594,-8111.41,0.00010958,2]
[335515199,1724296264603,-8111.41,0.00010958,2]
[335515200,1724296264613,-2760.42,0.00010958,2]
[335515201,1724296264622,-8111.41,0.00010958,2]
[335515202,1724296264631,-500.0,0.00010958,2]
[335515203,1724296264640,-2760.42,0.00010958,2]
[335515204,1724296264649,-8111.41,0.00010958,2]
[335515205,1724296264658,-500.0,0.00010958,2]
[335515206,1724296264667,-2760.42,0.00010958,2]
[335515207,1724296264677,-8111.41,0.00010958,2]
[335515208,1724296264686,-500.0,0.00010958,2]
[335515209,1724296264695,-2760.42,0.00010958,2]
[335515210,1724296264704,-500.0,0.00010958,2]
[335515211,1724296264713,-8111.41,0.00010958,2]
[335515212,1724296264723,-500.0,0.00010958,2]
[335515213,1724296264732,-2760.42,0.00010958,2]
[335515214,1724296264742,-516.2941601,0.00010958,2]
[335515215,1724296264751,-8111.41,0.00010958,2]
[335515216,1724296264760,-500.0,0.00010958,2]
[335515217,1724296264770,-2760.42,0.00010958,2]
[335515218,1724296264779,-8111.41,0.00010958,2]
[335515219,1724296264789,-2760.42,0.00010958,2]
[335515220,1724296264799,-8111.41,0.00010958,2]
[335515221,1724296264808,-500.0,0.00010958,2]
[335515222,1724296264818,-2760.42,0.00010958,2]
[335515223,1724296264827,-8111.41,0.00010958,2]
[335515224,1724296264837,-2760.42,0.00010958,2]
[335515225,1724296264846,-500.0,0.00010958,2]
[335515226,1724296264855,-500.0,0.00010958,2]
[335515227,1724296264866,-8111.41,0.00010958,2]
[335515228,1724296264875,-500.0,0.00010958,2]
[335515229,1724296264886,-2760.42,0.00010958,2]
[335515230,1724296264895,-8111.41,0.00010958,2]
[335515231,1724296264904,-500.0,0.00010958,2]
[335515232,1724296264913,-2760.42,0.00010958,2]
[335515233,1724296264922,-500.0,0.00010958,2]
[335515234,1724296264931,-8111.41,0.00010958,2]
[335515235,1724296264940,-500.0,0.00010958,2]
[335515236,1724296264949,-500.0,0.00010958,2]
[335515237,1724296264958,-500.0,0.00010958,2]
[335515238,1724296264967,-2760.42,0.00010958,2]
[335515239,1724296264976,-518.16404298,0.00010958,2]
[335515240,1724296264986,-500.0,0.00010958,2]
[335515241,1724296264995,-500.0,0.00010958,2]
[335515242,1724296265004,-8111.41,0.00010958,2]
[335515243,1724296265013,-2760.42,0.00010958,2]
[335515244,1724296265022,-500.0,0.00010958,2]
[335515245,1724296265031,-500.0,0.00010958,2]
[335515246,1724296265041,-8111.63423042,0.00010958,2]
[335515247,1724296265050,-2760.42,0.00010958,2]
[335515248,1724296265059,-3659.7,0.00010958,2]
[335515249,1724296265068,-432.05536539,0.00010958,2]
[335515250,1724296265082,-500.0,0.00010958,2]
[335515251,1724296265091,-3659.7,0.00010958,2]
[335515252,1724296265101,-2760.42,0.00010958,2]
[335515253,1724296265110,-500.0,0.00010958,2]
[335515254,1724296265120,-2760.42,0.00010958,2]
[335515255,1724296265129,-3659.7,0.00010958,2]
[335515256,1724296265139,-500.0,0.00010958,2]
[335515257,1724296265149,-3659.7,0.00010958,2]
[335515258,1724296265158,-2760.42,0.00010958,2]
[335515259,1724296265168,-500.0,0.00010958,2]
[335515260,1724296265177,-2760.42,0.00010958,2]
[335515261,1724296265186,-3659.7,0.00010958,2]
[335515262,1724296265195,-197.98982346,0.00010958,2]
[335515263,1724296265204,-500.0,0.00010958,2]
[335515264,1724296265213,-3659.7,0.00010958,2]
[335515265,1724296265222,-2760.42,0.00010958,2]
[335515266,1724296265231,-508.46746798,0.00010958,2]
[335515267,1724296265241,-500.0,0.00010958,2]
[335515268,1724296265250,-3659.7,0.00010958,2]
[335515269,1724296265259,-2760.42,0.00010958,2]
[335515270,1724296265268,-3659.7,0.00010958,2]
[335515271,1724296265277,-500.0,0.00010958,2]
[335515272,1724296265286,-2760.42,0.00010958,2]
[335515273,1724296265295,-3659.7,0.00010958,2]
[335515274,1724296265304,-500.0,0.00010958,2]
[335515275,1724296265314,-1935.20317164,0.00010958,2]
[335515276,1724296265359,-715.36994382,0.00010958,2]
[335515277,1724296265391,-109.84688454,0.00010958,2]
[335515278,1724296265400,-543.59898632,0.00010958,2]
[335515279,1724296265411,-3116.10101368,0.00010958,2]
[335515280,1724296265420,-500.0,0.00010958,2]
[335515281,1724296265430,-2760.42,0.00010958,2]
[335515282,1724296265439,-3659.7,0.00010958,2]
[335515283,1724296265448,-386.94705425,0.00010958,2]
[335515284,1724296265458,-2760.43932653,0.00010958,2]
[335515285,1724296265467,-3659.7,0.00010958,2]
[335515286,1724296265477,-3330.28294625,0.00010958,2]
[335515287,1724296265489,-329.41705375,0.00010958,2]
[335515288,1724296265498,-3288.2363651,0.00010958,2]
[335515289,1724296265511,-371.4636349,0.00010958,2]
[335515290,1724296265520,-559.66915469,0.00010958,2]
[335515291,1724296265531,-3100.03084531,0.00010958,2]
[335515292,1724296265541,-516.35210737,0.00010958,2]
[335515293,1724296265551,-3659.7,0.00010958,2]
[335515294,1724296265562,-3659.7,0.00010958,2]
[335515295,1724296265571,-3659.7,0.00010958,2]
[335515296,1724296265581,-3659.7,0.00010958,2]
[335515297,1724296265590,-3659.7,0.00010958,2]
[335515298,1724296265599,-3659.7,0.00010958,2]
[335515299,1724296265609,-3062.2,0.00010958,2]
[335515300,1724296265618,-3659.7,0.00010958,2]
[335515301,1724296265629,-3062.2,0.00010958,2]
[335515302,1724296265639,-3659.7,0.00010958,2]
[335515303,1724296265650,-27036.29,0.00010958,2]
[335515304,1724296265659,-500.0,0.00010958,2]
[335515305,1724296265668,-3062.2,0.00010958,2]
[335515306,1724296265677,-3659.86132368,0.00010958,2]
[335515307,1724296265686,-20241.37901995,0.00010958,2]
[335515308,1724296265699,-1206.0,0.00010958,2]
[335515309,1724296265709,-584.30000011,0.00010958,2]
[335515310,1724296265720,-831.48450349,0.00010958,2]
[335515311,1724296265731,-323.48183406,0.00010958,2]
[335515312,1724296265742,-286.93626806,0.00010958,2]
[335515313,1724296265753,-1599.08934919,0.00010958,2]
[335515314,1724296265764,-873.04153788,0.00010958,2]
[335515315,1724296265775,-985.07438389,0.00010958,2]
[335515316,1724296265785,-105.50310337,0.00010958,2]
[335515317,1724296265795,-262.16109245,0.00010958,2]
[335515318,1724296265804,-87.71275554,0.00010958,2]
[335515319,1724296266273,-1570.55517767,0.00010958,2]
[335515320,1724296266287,-427.18428536,0.00010958,2]
[335515321,1724296266300,-537.88,0.00010958,2]
[335515322,1724296266312,-438.86778143,0.00010958,2]
[335515323,1724296266323,-329.57941891,0.00010958,2]
[335515324,1724296266336,-170.42058109,0.00010958,2]
[335515325,1724296266346,-1084.64309525,0.00010958,2]
[335515326,1724296266357,-12574.80689569,0.00010958,2]
[335515327,1724296266369,-748.63230573,0.00010958,2]
[335515328,1724296266380,-4783.44655774,0.00010958,2]
[335515329,1724296266496,-150.0,0.00010581,2]
[335515330,1724296266506,-150.0,0.00010772,2]
[335515331,1724296266517,-860.0,0.0001094,2]
[335515332,1724296266526,-7844.76114559,0.00010958,2]
[335515333,1724296266535,-3062.2,0.00010958,2]
[335515334,1724296266545,-500.0,0.00010958,2]
[335515335,1724296266554,-3062.2,0.00010958,2]
[335515336,1724296266564,-11137.99301255,0.00010958,2]
[335515337,1724296266576,-458.27649239,0.00010958,2]
[335515338,1724296266588,-474.70594152,0.00010958,2]
[335515339,1724296266599,-1586.62710925,0.00010958,2]
[335515340,1724296266610,-1421.4756318,0.00010958,2]
[335515341,1724296266622,-2227.32105604,0.00010958,2]
[335515342,1724296266633,-3666.82998998,0.00010958,2]
[335515343,1724296266645,-1740.74654837,0.00010958,2]
[335515344,1724296266656,-506.28464956,0.00010958,2]
[335515345,1724296266668,-3816.02956854,0.00010958,2]
[335515346,1724296266677,-500.0,0.00010958,2]
[335515347,1724296266687,-3062.2,0.00010958,2]
[335515348,1724296266696,-4375.53237985,0.00010958,2]
[335515349,1724296266708,-8388.26784103,0.00010958,2]
[335515350,1724296266719,-1295.87497203,0.00010958,2]
[335515351,1724296266730,-12976.61480709,0.00010958,2]
[335515352,1724296266739,-500.0,0.00010958,2]
[335515353,1724296266749,-16424.32907422,0.00010958,2]
[335515354,1724296266767,-5143.26,0.00010958,2]
[335515355,1724296266779,-329.10857322,0.00010958,2]
[335515356,1724296266790,-609.53823585,0.00010958,2]
[335515357,1724296266801,-2439.94300744,0.00010958,2]
[335515358,1724296266812,-2090.11110927,0.00010958,2]
[335515359,1724296266822,-196.82978025,0.00010958,2]
[335515360,1724296266831,-151.59475967,0.00010958,2]
[335515361,1724296266843,-1000.54103258,0.00010958,2]
[335515362,1724296266855,-430.18684934,0.00010958,2]
[335515363,1724296266867,-1479.87735841,0.00010958,2]
[335515364,1724296266876,-6053.92183531,0.00010958,2]
[335515365,1724296266888,-20982.36816469,0.00010958,2]
[335515366,1724296266898,-1032.85125877,0.00010958,2]
[335515367,1724296266910,-2029.34874123,0.00010958,2]
[335515368,1724296266919,-3062.2,0.00010958,2]
[335515369,1724296266930,-7044.32780382,0.00010958,2]
[335515370,1724296266942,-4368.93054659,0.00010958,2]
[335515371,1724296266953,-15623.03164959,0.00010958,2]
[335515372,1724296266964,-3062.2,0.00010958,2]
[335515373,1724296266973,-27036.29,0.00010958,2]
[335515374,1724296266983,-3062.2,0.00010958,2]
[335515375,1724296266993,-8726.42075572,0.00010958,2]
[335515376,1724296267004,-3300.13670738,0.00010958,2]
[335515377,1724296267017,-603.5125369,0.00010958,2]
[335515378,1724296267033,-45.38746312,0.00010958,2]
[335515379,1724296267044,-553.56974129,0.00010958,2]
[335515381,1724296412172,640.77,8.219e-05,2]
[335515386,1724296518286,803.2,9.679e-05,2]
[335515387,1724296540925,1108.301799,9.893e-05,2]
[335515388,1724296557684,185.58,9.683e-05,2]
[335515389,1724296558146,190.06,9.683e-05,2]
[335515390,1724296616151,3086.96,9.678e-05,2]
[335515391,1724296679770,-300.0,9.908e-05,2]
[335515392,1724296679793,-300.0,9.908e-05,2]
[335515393,1724296681343,300.0,9.909e-05,2]
[335515394,1724296712959,181.0,9.899e-05,2]
[335515395,1724296712981,447.88487625,9.899e-05,2]
[335515398,1724297025207,190.06,9.826e-05,2]
[335515399,1724297038409,608.73,8.219e-05,2]
[335515400,1724297084988,357.44,9.825e-05,2]
[335515402,1724297138295,184.31,9.819e-05,2]
[335515430,1724297432163,-1500.0,9.988e-05,2]
[335515432,1724297432175,-896.41954626,9.988e-05,2]
[335515433,1724297432187,-160.75849557,9.999e-05,2]
[335515436,1724297432198,-148.3124917,9.999e-05,2]
[335515455,1724297432319,-151.6875083,9.999e-05,2]
[335515457,1724297432332,-156.92241027,9.999e-05,2]
[335515459,1724297432343,-495.06758146,9.999e-05,2]
[335515462,1724297432354,-228.89531276,0.0001,2]
[335515464,1724297432364,-3770.71443473,0.0001,2]
[335515465,1724297432376,-1007.86147342,0.0001,2]
[335515466,1724297432398,-448.92907749,0.0001,2]
[335515477,1724297438126,-431.27392657,0.0001,2]
[335515480,1724297438141,-169.79699594,0.0001,2]
[335515481,1724297438151,-161.50393307,0.00010009,2]
[335515482,1724297438162,-32.69907099,0.00010009,2]
[335515483,1724297438174,-122.30092901,0.00010009,2]
[335515484,1724297438184,-155.0,0.00010009,2]
[335515485,1724297438196,-193.53250734,0.00010009,2]
[335515486,1724297438265,-407.26542212,0.00010009,2]
[335515487,1724297438276,-10572.58406444,0.00010097,2]
[335515488,1724297438287,-2009.04366656,0.000101,2]
[335515489,1724297438298,-608.73,0.00010467,2]
[335515490,1724297438311,-499.99,0.00010542,2]
[335515491,1724297438323,-201.30578638,0.00010566,2]
[335515492,1724297438334,-3925.44196721,0.00010566,2]
[335515493,1724297438345,-236.56341525,0.00010566,2]
[335515494,1724297438357,-3616.98524092,0.00010566,2]
[335515495,1724297438367,-3038.3518226,0.00010566,2]
[335515496,1724297438379,-150.0,0.00010685,2]
[335515497,1724297438391,-150.0,0.00010686,2]
[335515498,1724297438401,-150.0,0.00010686,2]
[335515499,1724297438410,-150.0,0.00010691,2]
[335515507,1724297438609,-150.0,0.00010694,2]
[335515510,1724297438622,-150.0,0.00010695,2]
[335515511,1724297438631,-150.0,0.00010698,2]
[335515513,1724297438648,-1403.79,0.00010699,2]
[335515515,1724297438657,-150.0,0.00010699,2]
[335515517,1724297438666,-150.0,0.00010699,2]
[335515519,1724297438676,-879.68964482,0.00010699,2]
[335515521,1724297438686,-1790.55788892,0.00010699,2]
[335515523,1724297438695,-756.3379,0.000107,2]
[335515525,1724297438704,-3238.1439,0.000107,2]
[335515527,1724297438713,-8744.881,0.000107,2]
[335515529,1724297438722,-500.0,0.000107,2]
[335515531,1724297438732,-1275.5124,0.000107,2]
[335515533,1724297438741,-1000.0,0.000107,2]
[335515535,1724297438750,-628.7499,0.000107,2]
[335515536,1724297438760,-150.0,0.00010704,2]
[335515538,1724297438770,-165.36144739,0.0001071,2]
[335515540,1724297438779,-150.0,0.00010717,2]
[335515542,1724297438788,-150.0,0.0001072,2]
[335515544,1724297438798,-150.0,0.0001072,2]
[335515546,1724297438807,-150.0,0.00010721,2]
[335515548,1724297438817,-150.0,0.00010726,2]
[335515550,1724297438826,-150.0,0.00010728,2]
[335515552,1724297438835,-150.0,0.00010734,2]
[335515553,1724297438844,-150.0,0.00010734,2]
[335515554,1724297438853,-150.0,0.00010734,2]
[335515555,1724297438863,-150.0,0.00010739,2]
[335515556,1724297438872,-150.0,0.00010745,2]
[335515557,1724297438882,-150.0,0.00010746,2]
[335515558,1724297438894,-150.0,0.00010746,2]
[335515559,1724297438907,-150.0,0.00010747,2]
[335515560,1724297438917,-150.0,0.00010751,2]
[335515561,1724297438926,-150.0,0.00010752,2]
[335515562,1724297438934,-150.0,0.00010753,2]
[335515563,1724297438943,-4704.15184783,0.00010758,2]
[335515564,1724297438952,-150.0,0.00010763,2]
[335515565,1724297438962,-150.0,0.00010767,2]
[335515566,1724297438971,-150.0,0.00010769,2]
[335515567,1724297438980,-150.0,0.00010772,2]
[335515568,1724297438989,-150.0,0.00010773,2]
[335515569,1724297438998,-150.0,0.00010774,2]
[335515570,1724297439007,-150.0,0.00010775,2]
[335515571,1724297439016,-150.0,0.00010775,2]
[335515572,1724297439025,-150.0,0.00010775,2]
[335515573,1724297439034,-150.0,0.00010782,2]
[335515574,1724297439044,-150.0,0.00010787,2]
[335515575,1724297439053,-150.0,0.00010789,2]
[335515576,1724297439062,-3774.09292023,0.0001079,2]
[335515577,1724297439071,-150.0,0.0001079,2]
[335515578,1724297439080,-150.0,0.00010792,2]
[335515579,1724297439089,-150.0,0.00010792,2]
[335515580,1724297439098,-150.0,0.00010795,2]
[335515581,1724297439107,-1403.79,0.00010798,2]
[335515582,1724297439116,-1403.79,0.00010799,2]
[335515583,1724297439125,-155.94399844,0.000108,2]
[335515584,1724297439134,-426.79,0.000108,2]
[335515585,1724297439144,-150.0,0.000108,2]
[335515586,1724297439153,-150.0,0.00010805,2]
[335515587,1724297439163,-150.0,0.00010807,2]
[335515588,1724297439171,-150.0,0.00010807,2]
[335515589,1724297439181,-150.0,0.00010808,2]
[335515590,1724297439190,-150.0,0.00010809,2]
[335515591,1724297439199,-150.0,0.00010811,2]
[335515592,1724297439209,-150.0,0.00010812,2]
[335515593,1724297439218,-150.0,0.00010817,2]
[335515594,1724297439228,-150.0,0.00010821,2]
[335515595,1724297439237,-150.0,0.00010822,2]
[335515596,1724297439247,-150.0,0.00010822,2]
[335515597,1724297439256,-150.0,0.00010824,2]
[335515598,1724297439266,-150.0,0.00010824,2]
[335515599,1724297439275,-150.0,0.00010834,2]
[335515600,1724297439284,-3283.74891204,0.00010835,2]
[335515601,1724297439294,-150.0,0.00010836,2]
[335515602,1724297439303,-568.762,0.00010836,2]
[335515603,1724297439313,-150.0,0.0001084,2]
[335515604,1724297439322,-150.0,0.0001084,2]
[335515605,1724297439332,-150.0,0.00010843,2]
[335515606,1724297439342,-150.0,0.00010843,2]
[335515607,1724297439351,-1683.39231,0.0001085,2]
[335515608,1724297439360,-177.7876,0.00010851,2]